bitfinex/quotes_ETHUSD_20260209
["timestamp","ask_amount","ask_price","bid_price","bid_amount"]
[1770645579025,1.03979452,2025.0,2024.1,4.68409268]
[1770645579229,4.12297191,2025.1,2024.2,1.23505547]
[1770645579448,1.03930125,2025.0,2024.2,1.23505547]
[1770645579750,1.03930125,2025.0,2023.3,5.04478809]
[1770645579751,4.12297191,2024.2,2022.7,4.22589726]
[1770645580052,1.03864875,2024.1,2023.1,4.22589726]
[1770645580221,1.03864875,2024.1,2023.0,1.23578843]
[1770645580222,1.235099,2024.2,2023.3,4.22589726]
[1770645580823,6.23836127,2024.4,2023.3,4.22589726]
[1770645581040,4.93961886,2024.5,2023.5,4.22589726]
[1770645581225,4.93961886,2024.5,2023.3,4.22589726]
[1770645581428,4.93961886,2024.5,2023.0,3.11209]
[1770645581429,1.29846956,2024.3,2023.0,3.11209]
[1770645581626,4.93961886,2024.5,2023.2,3.675236]
[1770645581823,1.03729242,2024.4,2023.2,3.675236]
[1770645582015,1.03729242,2024.4,2023.3,1.23560519]
[1770645582016,1.23505582,2024.2,2023.3,1.23560519]
[1770645582440,1.23505582,2024.2,2023.2,1.2356184]
[1770645583651,1.23505582,2024.2,2023.2,5.46151566]
[1770645583948,1.23505582,2024.2,2023.3,4.22589726]
[1770645584150,1.2349338,2024.4,2023.4,1.23554413]
[1770645584347,1.03559278,2024.3,2023.4,1.23554413]
[1770645584647,1.2349338,2024.4,2023.4,1.23554413]
[1770645585128,1.03555814,2024.3,2023.4,1.23554413]
[1770645585449,1.2349338,2024.4,2023.4,1.23554413]
[1770645586022,4.93950619,2024.5,2023.6,0.001]
[1770645586619,1.2348728,2024.5,2023.6,3.92651808]
[1770645587047,1.2348728,2024.5,2023.6,0.001]
[1770645588257,3.93236162,2024.5,2023.6,0.001]
[1770645589334,10.54371621,2024.2,2023.1,8.39178709]
[1770645589558,14.47607783,2024.2,2023.3,1.23559056]
[1770645589746,3.93236162,2024.1,2023.1,3.449]
[1770645590054,3.93236162,2024.1,2023.2,1.23566152]
[1770645590258,0.0735222,2024.4,2023.2,4.94242079]
[1770645590259,1.23499481,2024.3,2023.2,4.94242079]
[1770645590433,5.24087863,2024.3,2023.2,1.23566627]
[1770645590634,5.24087863,2024.3,2023.1,4.68468585]
[1770645590635,4.9652402,2024.2,2023.1,4.68468585]
[1770645590829,3.93236162,2024.2,2023.1,4.68468585]
[1770645591141,3.93236162,2024.2,2023.1,8.61020393]
[1770645591864,1.23499481,2024.3,2023.1,8.61020393]
[1770645592051,1.23499481,2024.3,2023.2,3.92551808]
[1770645592246,1.23499481,2024.3,2023.3,1.23560519]
[1770645592448,1.23497393,2024.4,2023.4,3.92551808]
[1770645593861,3.93236162,2023.9,2023.1,3.449]
[1770645594052,0.0735222,2024.3,2023.1,3.449]
[1770645594053,14.47607783,2024.1,2023.1,1.23570438]
[1770645594249,1.23517786,2024.0,2023.1,4.94289884]
[1770645594450,1.23517786,2024.0,2023.1,1.23572734]
[1770645595138,5.16753948,2024.0,2023.1,1.23572734]
[1770645595534,1.23517786,2024.0,2023.1,1.23572734]
[1770645595754,1.23505582,2024.2,2023.2,3.92551808]
[1770645596158,1.2349338,2024.5,2023.2,3.92551808]
[1770645596362,1.2349338,2024.5,2023.3,5.16112327]
[1770645596570,1.2349338,2024.5,2023.4,3.451]
[1770645596862,1.2349338,2024.5,2023.4,7.37651808]
[1770645597054,10.54371621,2024.0,2023.2,1.2356452]
[1770645597256,3.93236162,2024.3,2023.2,1.23566035]
[1770645597456,4.93236162,2024.3,2023.2,1.23566035]
[1770645597656,3.93236162,2024.2,2023.2,1.23566548]
[1770645597961,3.93236162,2024.2,2023.1,4.94275262]
[1770645597962,3.93236162,2024.2,2023.1,1.23568618]
[1770645598160,3.93236162,2024.2,2023.2,1.23566319]
[1770645598364,1.23511684,2024.1,2023.0,5.16126472]
[1770645598665,1.30863904,2024.1,2023.0,5.16130151]
[1770645599148,3.93236162,2024.0,2022.7,3.92551808]
[1770645599348,3.93236162,2024.0,2023.3,0.001]
[1770645599349,1.03163512,2023.9,2023.3,0.001]
[1770645599945,14.47807783,2024.0,2023.3,0.001]
[1770645600144,1.03182685,2023.9,2023.3,0.001]
[1770645600342,1.23523889,2023.9,2023.3,0.001]
[1770645601257,19.41903341,2024.0,2023.3,3.92651808]
[1770645601258,0.002,2024.0,2023.3,3.92651808]
[1770645601853,1.23718141,2024.0,2023.3,3.92651808]
[1770645602058,1.23718141,2024.0,2023.3,0.001]
[1770645602461,0.002,2024.0,2023.3,0.001]
[1770645603088,1.03345428,2023.9,2023.3,0.001]
[1770645603253,1.03345428,2023.9,2021.9,5.4255703]
[1770645603254,0.0735222,2023.8,2022.6,1.23601797]
[1770645603452,1.28980876,2023.9,2022.9,1.23581301]
[1770645603675,1.03412427,2023.8,2023.0,1.23578402]
[1770645603980,0.002,2024.0,2023.0,5.1613021]
[1770645604380,1.23717786,2024.0,2023.0,3.92551808]
[1770645604587,1.03526292,2023.9,2023.0,3.92551808]
[1770645604882,1.23717786,2024.0,2023.1,3.452]
[1770645605071,1.03554258,2023.9,2023.1,3.452]
[1770645605386,1.03554448,2023.8,2023.1,3.452]
[1770645605584,2.52698662,2024.0,2023.1,3.452]
[1770645605756,1.03680235,2023.9,2023.1,3.452]
[1770645605957,1.03680235,2023.8,2023.1,3.452]
[1770645606158,1.23717786,2024.0,2023.1,3.452]
[1770645606358,1.23717786,2024.0,2023.0,3.92551808]
[1770645606359,3.56484578,2024.0,2023.2,3.452]
[1770645606553,3.56484578,2024.0,2023.0,3.92551808]
[1770645606554,1.03785916,2023.9,2023.0,3.92551808]
[1770645606775,1.03785916,2023.8,2022.8,3.294892]
[1770645606963,1.03785916,2023.7,2022.9,3.452]
[1770645607164,1.03785916,2023.6,2022.9,3.452]
[1770645607369,1.03785916,2023.6,2022.7,5.16148654]
[1770645607370,1.03785916,2023.5,2022.7,3.92551808]
[1770645607569,1.28980876,2023.8,2022.8,3.452]
[1770645607786,1.0095764,2023.7,2022.8,3.452]
[1770645607983,1.28980876,2023.8,2022.8,3.452]
[1770645608376,1.23542202,2023.6,2022.9,3.452]
[1770645608687,1.23542202,2023.6,2023.0,3.452]
[1770645609080,1.23542202,2023.6,2022.5,1.2360841]
[1770645609272,1.23542202,2023.6,2022.4,3.92551808]
[1770645609273,2.52523078,2023.6,2022.6,4.68803178]
[1770645609782,2.52523078,2023.6,2022.6,5.16154986]
[1770645610095,2.52523078,2023.6,2022.7,3.452]
[1770645610258,1.28980876,2023.6,2022.8,3.92551808]
[1770645610457,1.23539199,2023.7,2022.9,3.452]
[1770645610458,2.52520075,2023.7,2022.9,3.452]
[1770645610685,2.52515744,2023.8,2023.0,3.92551808]
[1770645610879,1.23534868,2023.8,2023.0,3.92551808]
[1770645611267,3.93236162,2024.2,2023.0,3.92551808]
[1770645611268,1.73017621,2024.6,2023.3,3.92551808]
[1770645611591,3.50857487,2025.0,2023.2,0.0735222]
[1770645611592,1.234608,2025.0,2024.2,4.270218]
[1770645611891,1.73017621,2025.2,2024.3,3.452]
[1770645611892,1.23444734,2025.2,2024.3,3.452]
[1770645612780,4.93978392,2025.3,2024.4,3.452]
[1770645613290,1.23638502,2025.3,2024.4,3.452]
[1770645614571,0.002,2024.8,2024.5,3.92551808]
[1770645614778,0.002,2025.3,2024.7,5.1602689]
[1770645615295,0.002,2025.5,2024.8,4.37814754]
[1770645616507,0.002,2025.5,2024.6,4.9390033]
[1770645616508,0.002,2025.5,2024.6,1.23477829]
[1770645616711,0.002,2025.5,2024.7,3.451]
[1770645616932,0.002,2025.5,2024.8,4.37814754]
[1770645618405,0.002,2025.5,2025.0,10.500118]
[1770645619010,0.002,2025.5,2025.0,1.23452004]
[1770645619211,0.002,2025.5,2024.9,1.23459055]
[1770645619508,0.002,2025.5,2024.9,1.2345933]
[1770645619707,0.002,2025.5,2025.0,4.68556227]
[1770645620327,0.002,2025.5,2025.1,3.451]
[1770645621415,0.002,2025.5,2025.1,1.23450169]
[1770645621614,0.002,2025.5,2025.2,3.451]
[1770645621809,0.002,2025.5,2024.5,9.21687331]
[1770645622016,0.002,2025.5,2025.0,1.23456575]
[1770645622532,0.002,2025.5,2025.1,3.45]
[1770645622742,0.002,2025.5,2025.1,1.23450649]
[1770645622911,0.002,2025.5,2025.2,3.45]
[1770645623117,0.002,2025.5,2025.0,1.23452686]
[1770645623426,0.002,2025.5,2025.1,4.68449894]
[1770645624308,0.002,2025.5,2025.2,2.177]
[1770645624512,0.002,2025.5,2025.3,3.45]
[1770645624713,1.23399706,2026.0,2025.3,3.45]
[1770645625556,4.28182482,2026.1,2025.0,1.2345326]
[1770645625856,4.28182482,2026.1,2025.4,3.45]
[1770645626216,4.93535683,2026.2,2025.4,3.45]
[1770645626731,0.002,2025.5,2025.4,3.45]
[1770645627541,0.002,2025.5,2025.4,4.68432408]
[1770645627719,0.002,2025.5,2025.4,3.45]
[1770645629117,0.002,2025.5,2025.0,1.23452691]
[1770645629315,0.002,2025.5,2025.1,4.68450297]
[1770645629847,0.002,2025.5,2025.2,3.449]
[1770645630621,4.28182482,2025.4,2024.6,1.2348071]
[1770645630820,4.28182482,2025.4,2024.7,3.449]
[1770645631130,4.28182482,2025.4,2024.3,4.93979484]
[1770645631329,4.28182482,2025.4,2024.6,1.23480242]
[1770645631532,5.51620984,2025.3,2024.2,4.94021889]
[1770645631724,5.51620984,2025.3,2024.7,3.449]
[1770645632127,4.28182482,2024.9,2023.4,4.27755912]
[1770645632446,4.28182482,2024.5,2023.2,0.001]
[1770645632616,4.28182482,2024.5,2023.6,4.6844214]
[1770645632942,0.25749115,2024.7,2023.7,1.23535594]
[1770645633142,0.25749115,2024.7,2023.7,1.23533428]
[1770645633313,0.25749115,2024.7,2023.6,4.68438282]
[1770645633514,1.49230254,2024.7,2024.0,1.23513164]
[1770645633748,1.49230254,2024.7,2023.8,1.23525299]
[1770645633946,1.49230254,2024.7,2023.2,0.001]
[1770645633947,15.69838758,2024.2,2023.2,0.001]
[1770645634153,4.28182482,2024.5,2023.2,0.001]
[1770645634329,4.28182482,2024.2,2023.2,1.23665961]
[1770645634523,4.28182482,2024.2,2023.2,0.001]
[1770645634748,4.28182482,2024.2,2023.2,3.451]
[1770645635750,1.23511684,2024.1,2023.2,0.001]
[1770645638949,4.28182482,2023.7,2023.0,0.001]
[1770645639341,4.28182482,2023.7,2023.4,0.001]
[1770645639645,4.28182482,2023.7,2023.0,0.001]
[1770645639957,5.51694166,2024.1,2023.2,0.001]
[1770645643058,1.23511684,2024.1,2023.2,0.001]
[1770645643234,4.28182482,2024.0,2023.2,0.001]
[1770645643433,11.41656276,2023.4,2022.8,0.001]
[1770645643744,4.28182482,2023.7,2022.8,0.001]
[1770645644230,1.23542202,2023.6,2022.8,0.001]
[1770645644425,5.51724684,2023.6,2022.8,0.001]
[1770645645762,4.39484464,2023.5,2022.8,0.001]
[1770645646685,1.23554413,2023.4,2022.8,0.001]
[1770645648986,1.23554413,2023.4,2022.3,0.001]
[1770645648988,4.39484464,2022.8,2022.3,0.001]
[1770645649191,7.84684464,2022.8,2021.8,1.2395069]
[1770645649359,7.84684464,2022.8,2021.8,0.003]
[1770645650763,1.23597172,2022.7,2021.8,0.003]
[1770645652598,1.23566627,2023.2,2022.0,4.6406777]
[1770645652759,4.9425183,2023.3,2022.1,1.23633846]
[1770645653797,4.9425183,2023.3,2022.0,1.23738543]
[1770645653798,4.46836684,2023.2,2022.0,1.23738543]
[1770645654106,4.39484464,2023.2,2022.0,0.001]
[1770645654405,4.46836684,2023.2,2022.0,0.001]
[1770645654909,4.39484464,2023.0,2022.0,0.001]
[1770645655412,4.39484464,2022.8,2022.0,0.001]
[1770645655581,14.86956276,2023.0,2022.0,0.001]
[1770645655780,19.2644074,2023.0,2022.0,0.001]
[1770645656112,3.453,2023.0,2022.0,0.001]
[1770645656316,1.23499481,2024.3,2022.5,4.6406777]
[1770645656500,5.62983945,2024.3,2022.8,9.0484017]
[1770645656816,5.70336165,2024.3,2022.9,1.23584952]
[1770645657035,4.39484464,2023.6,2022.5,1.23607228]
[1770645657180,11.41656276,2023.8,2022.8,1.23590507]
[1770645657381,11.41656276,2023.8,2022.7,1.23592443]
[1770645657583,11.41656276,2023.8,2022.8,1.2359075]
[1770645657801,4.39484464,2023.9,2022.7,1.23593215]
[1770645658009,4.39484464,2023.9,2022.8,1.23589602]
[1770645658210,11.41656276,2023.8,2022.1,4.6406777]
[1770645658514,15.8114074,2024.2,2022.8,1.23590017]
[1770645658702,4.39484464,2024.2,2022.9,4.6406777]
[1770645659239,1.23511684,2024.1,2023.0,1.23578843]
[1770645659390,1.23511684,2024.1,2022.7,4.94386225]
[1770645659391,0.0735222,2023.8,2022.7,4.94386225]
[1770645659592,1.23511684,2024.1,2022.9,1.23584088]
[1770645659795,1.03363627,2024.0,2022.9,1.23584088]
[1770645659992,1.23511684,2024.1,2022.9,1.23584088]
[1770645660210,1.03369373,2024.0,2022.9,1.23584088]
[1770645660433,4.39484464,2023.7,2022.3,4.6406777]
[1770645660734,1.03369373,2023.6,2022.4,1.23612305]
[1770645660934,1.03369373,2023.6,2022.8,4.94356931]
[1770645661217,1.03369373,2023.6,2022.0,4.6446777]
[1770645661218,0.0735222,2023.4,2022.0,4.6446777]
[1770645661413,1.03654029,2023.3,2022.4,1.23614646]
[1770645661587,6.11782674,2023.6,2022.4,1.23614646]
[1770645661788,1.03661284,2023.5,2022.4,1.23610648]
[1770645661988,1.03661284,2023.4,2022.5,1.23608284]
[1770645662319,1.03661284,2023.3,2022.5,1.23608927]
[1770645662531,1.7229821,2023.3,2022.1,4.94529159]
[1770645662697,2.75959494,2023.3,2022.2,1.23624554]
[1770645663034,2.75959494,2023.3,2022.2,1.23626122]
[1770645663210,1.23572734,2023.1,2022.0,0.004]
[1770645663598,1.03840212,2023.0,2022.0,4.6446777]
[1770645663798,1.03840212,2022.9,2022.0,4.6446777]
[1770645664017,1.23572734,2023.1,2022.0,0.004]
[1770645664018,1.03839348,2022.8,2022.0,0.004]
[1770645664218,2.96639755,2023.1,2022.0,0.004]
[1770645664417,1.03862437,2023.0,2022.0,0.004]
[1770645664725,1.03862437,2022.9,2022.0,0.004]
[1770645665030,1.23571372,2023.2,2022.2,4.6406777]
[1770645665215,1.23578843,2023.0,2022.3,1.23621618]
[1770645665419,1.23560519,2023.3,2022.3,1.23621618]
[1770645665616,1.03908376,2023.2,2022.3,1.23621618]
[1770645665930,1.03908376,2023.1,2022.2,1.2362395]
[1770645666131,1.03908376,2023.0,2022.2,1.2362395]
[1770645666428,2.9662754,2023.3,2022.2,1.2362395]
[1770645666747,0.002,2023.1,2022.2,5.8769172]
[1770645666906,0.002,2023.1,2022.3,4.6406777]
[1770645667420,0.002,2023.1,2022.4,5.87683276]
[1770645667619,0.002,2023.1,2022.5,4.6406777]
[1770645667820,0.002,2023.3,2022.7,4.6406777]
[1770645668027,2.59600531,2023.8,2022.7,4.6406777]
[1770645668028,1.23535503,2023.8,2022.7,4.6406777]
[1770645668213,1.04027479,2023.7,2022.7,4.6406777]
[1770645668535,1.04027479,2023.6,2022.7,4.6406777]
[1770645668730,1.04055612,2023.5,2022.7,4.6406777]
[1770645669036,1.23535503,2023.8,2022.7,4.6406777]
[1770645669238,1.04066656,2023.7,2022.7,4.6406777]
[1770645669538,2.27608858,2023.6,2022.8,5.87658831]
[1770645669740,1.23542202,2023.6,2022.8,5.87658831]
[1770645669945,4.39484464,2023.8,2022.2,9.58556376]
[1770645670114,1.73067021,2023.6,2022.5,1.23605863]
[1770645670307,2.77091512,2023.5,2022.4,1.23612382]
[1770645670542,2.77091512,2023.4,2022.4,1.23615429]
[1770645670743,1.04024491,2023.3,2022.2,4.6406777]
[1770645671148,1.04024491,2023.3,2022.5,1.23604481]
[1770645671360,3.57694123,2023.3,2022.3,4.6406777]
[1770645671655,1.04024491,2023.2,2022.3,4.6406777]
[1770645672835,1.04024491,2023.2,2022.0,4.94948957]
[1770645672836,1.30104507,2023.0,2022.0,0.004]
[1770645673129,1.04024491,2022.9,2022.0,4.6446777]
[1770645673325,1.04024491,2022.9,2022.1,5.87701616]
[1770645673326,1.04024491,2022.8,2022.1,5.87701616]
[1770645673528,1.30104507,2023.3,2022.5,4.6406777]
[1770645673740,1.235589,2023.4,2022.5,4.6406777]
[1770645673938,1.30104507,2023.6,2022.7,4.6406777]
[1770645674138,1.30104507,2023.6,2022.3,11.41656276]
[1770645674139,2.3427722,2023.6,2022.3,4.6406777]
[1770645674340,0.49838393,2023.5,2022.9,0.0735222]
[1770645674546,4.94051586,2024.1,2023.2,3.99816]
[1770645674756,1.23511684,2024.1,2023.2,3.99816]
[1770645675322,0.002,2024.2,2023.3,1.23560519]
[1770645676032,0.002,2024.2,2023.3,5.9700716]
[1770645676228,0.002,2024.2,2023.4,4.73446641]
[1770645678060,0.002,2024.2,2023.5,1.23548307]
[1770645679355,0.002,2024.2,2023.5,6.0800255]
[1770645679676,0.002,2024.2,2023.6,3.453]
[1770645680074,0.002,2024.2,2023.6,8.29754243]
[1770645680372,0.002,2024.2,2023.7,1.23536097]
[1770645680756,0.002,2024.0,2023.7,1.23536097]
[1770645681050,0.002,2024.5,2023.9,4.84454243]
[1770645681465,0.002,2025.3,2023.9,4.84454243]
[1770645681466,0.002,2025.3,2024.5,4.84454243]
[1770645681666,0.002,2025.1,2024.6,3.453]
[1770645682248,0.002,2025.1,2024.7,6.07929325]
[1770645682467,0.002,2025.5,2024.7,6.07929325]
[1770645683248,0.002,2025.5,2024.8,4.84454243]
[1770645683649,0.002,2025.5,2025.0,4.84454243]
[1770645684153,0.002,2025.5,2025.1,1.23450693]
[1770645684368,0.002,2025.5,2025.2,5.162869]
[1770645684552,1.23571496,2026.4,2025.2,5.162869]
[1770645684869,1.23571496,2026.4,2025.3,3.452]
[1770645685076,1.23571496,2026.4,2025.3,8.29654243]
[1770645685455,0.002,2026.4,2025.3,8.29654243]
[1770645685651,0.002,2026.4,2025.5,4.84454243]
[1770645685849,0.002,2026.4,2025.6,4.84454243]
[1770645686060,0.002,2026.4,2025.7,5.920057]
[1770645686258,0.002,2026.4,2025.8,1.23408036]
[1770645687269,0.002,2026.4,2025.7,1.23410121]
[1770645687573,1.23347148,2026.8,2025.4,4.84454243]
[1770645687574,10.60546341,2026.7,2025.4,1.2342876]
[1770645687776,4.64106474,2026.6,2025.4,1.23428308]
[1770645687981,4.64106474,2026.6,2025.7,1.23413849]
[1770645688165,4.64106474,2026.6,2025.5,1.23421844]
[1770645688351,1.23365408,2026.5,2025.3,1.23438502]
[1770645689068,4.64106474,2026.2,2025.0,1.23451148]
[1770645689289,4.64106474,2026.2,2025.1,1.23446374]
[1770645689458,1.23365408,2026.5,2025.2,1.23443637]
[1770645689666,1.23365408,2026.5,2025.4,2.997]
[1770645690055,1.23365408,2026.5,2025.5,5.979956]
[1770645690377,1.23341062,2026.9,2025.7,1.23414128]
[1770645691673,5.87447536,2026.9,2025.7,1.23414128]
[1770645691878,4.64106474,2026.8,2025.7,1.23414128]
[1770645692858,1.23347148,2026.9,2025.7,1.23414128]
[1770645693060,1.23324202,2027.2,2025.9,0.0735222]
[1770645693261,4.64106474,2027.1,2025.8,5.756832]
[1770645693770,4.64106474,2027.1,2025.8,3.742]
[1770645693979,0.002,2026.2,2025.7,1.23414128]
[1770645694480,0.002,2026.2,2025.8,3.449]
[1770645694672,0.002,2026.2,2025.9,2.702832]
[1770645694864,0.002,2026.2,2025.8,3.449]
[1770645695064,0.002,2026.2,2026.0,1.23395853]
[1770645695473,0.002,2026.2,2025.8,3.449]
[1770645695692,0.002,2026.2,2025.9,1.23401599]
[1770645696101,0.002,2026.2,2025.7,1.23411101]
[1770645696466,0.002,2026.2,2025.8,1.23406929]
[1770645697001,0.002,2026.2,2025.7,1.23410633]
[1770645697167,0.002,2026.2,2025.6,4.68319812]
[1770645697488,0.002,2026.2,2025.2,4.84454243]
[1770645697675,0.002,2026.2,2025.5,1.23425878]
[1770645697993,0.002,2026.2,2025.6,1.23415764]
[1770645698497,0.002,2026.2,2025.6,1.23419836]
[1770645698798,0.002,2026.2,2025.6,1.23418987]
[1770645699677,0.002,2026.2,2025.4,4.9372935]
[1770645700307,0.002,2026.2,2025.3,3.449]
[1770645700477,0.002,2026.2,2025.0,1.2345186]
[1770645700478,4.64306474,2026.2,2025.0,1.2345186]
[1770645700677,4.64306474,2026.2,2025.1,1.23450684]
[1770645701700,4.64306474,2026.2,2025.0,4.68351912]
[1770645701903,4.64106474,2026.0,2025.0,3.449]
[1770645702103,4.64106474,2026.0,2024.8,0.001]
[1770645703485,4.64106474,2025.8,2024.8,0.001]
[1770645703875,4.64106474,2025.6,2024.8,0.001]
[1770645704789,4.64106474,2025.3,2024.5,0.001]
[1770645705297,1.03727737,2025.2,2024.5,0.001]
[1770645705496,4.64106474,2025.3,2024.5,0.001]
[1770645705679,1.03727572,2025.2,2024.5,0.001]
[1770645705880,6.33288901,2025.2,2024.5,0.001]
[1770645706201,1.03723454,2025.1,2024.5,0.001]
[1770645706506,6.33288901,2025.2,2024.5,0.001]
[1770645706507,1.23444598,2025.2,2024.5,0.001]
[1770645706693,1.23444598,2025.2,2025.0,0.001]
[1770645707394,1.23444598,2025.2,2024.3,5.13439957]
[1770645708080,4.9370716,2025.5,2024.4,6.36933337]
[1770645708481,11.33390751,2025.8,2024.4,6.36933337]
[1770645708482,1.23414128,2025.8,2024.8,5.20792177]
[1770645708684,0.002,2026.0,2024.8,5.20792177]
[1770645709009,1.23600016,2026.0,2025.1,4.855964]
[1770645709718,1.23600016,2026.0,2025.1,5.13439957]
[1770645710130,0.002,2026.0,2025.2,1.23444598]
[1770645710789,0.002,2026.0,2025.1,6.36885706]
[1770645711479,1.04190111,2025.9,2025.1,6.36885706]
[1770645711681,0.002,2026.0,2025.0,1.23454507]
[1770645711912,1.04187743,2025.9,2025.0,1.23455598]
[1770645712085,1.23414128,2025.7,2024.8,1.23464103]
[1770645712910,1.23414128,2025.7,2024.7,1.23470603]
[1770645713078,1.0417113,2025.6,2024.7,1.23470603]
[1770645713283,1.23414128,2025.7,2024.7,1.23470603]
[1770645714188,1.23410382,2025.8,2024.8,11.936564]
[1770645714412,1.23410382,2025.8,2024.6,10.14692507]
[1770645715108,1.23410382,2025.8,2024.7,8.54672357]
[1770645715290,1.23410382,2025.8,2024.9,5.13439957]
[1770645716314,4.93786485,2026.0,2025.0,1.2345679]
[1770645716515,1.04214812,2025.9,2025.0,1.2345679]
[1770645716714,4.93786485,2026.0,2025.0,1.2345679]
[1770645716915,1.04213939,2025.9,2025.0,1.2345679]
[1770645717228,0.002,2026.0,2025.3,5.13439957]
[1770645717916,0.002,2026.0,2025.5,0.0735222]
[1770645718113,0.002,2026.0,2025.6,9.69785557]
[1770645718315,0.002,2026.0,2025.7,1.23414128]
[1770645718888,0.002,2026.2,2025.7,6.36854085]
[1770645719105,1.23356911,2026.7,2025.8,8.58339957]
[1770645719328,1.23341062,2026.9,2026.0,4.171144]
[1770645719515,1.23532171,2027.1,2026.1,5.13439957]
[1770645719717,1.23532171,2027.1,2026.2,15.226304]
[1770645720016,1.23532171,2027.1,2026.3,4.404624]
[1770645720213,0.002,2027.1,2026.3,4.404624]
[1770645720386,0.002,2027.1,2026.4,1.23371496]
[1770645720586,0.002,2027.1,2026.3,1.23377284]
[1770645720787,0.002,2026.8,2026.3,1.23377284]
[1770645721826,0.002,2026.8,2026.3,1.23377222]
[1770645722227,0.002,2026.8,2025.8,3.5225222]
[1770645722410,5.10044303,2026.8,2025.4,3.588549]
[1770645722615,1.04089776,2026.7,2025.8,1.23406498]
[1770645722793,0.002,2026.8,2025.8,1.23406498]
[1770645722993,1.04080119,2026.7,2025.8,1.23406498]
[1770645723202,0.002,2026.8,2025.8,1.23406498]
[1770645723423,1.04098587,2026.7,2025.8,1.23406498]
[1770645723628,0.002,2026.8,2025.8,1.23406498]
[1770645723831,1.0409888,2026.7,2025.8,1.23406498]
[1770645724033,0.002,2026.8,2025.8,1.23406498]
[1770645724215,1.04098923,2026.7,2025.8,1.23406498]
[1770645724415,1.23359321,2026.6,2025.6,10.07117843]
[1770645724817,0.002,2026.8,2025.9,5.13439957]
[1770645725036,0.002,2026.8,2025.8,0.0735222]
[1770645725037,0.002,2026.8,2026.2,5.13439957]
[1770645725241,0.002,2027.1,2026.5,8.985971]
[1770645725466,0.002,2027.1,2026.6,7.589154]
[1770645725808,0.002,2027.1,2026.5,5.13439957]
[1770645726028,0.002,2027.1,2026.7,3.961087]
[1770645726334,0.002,2027.1,2026.9,1.23341062]
[1770645727204,0.002,2027.1,2026.8,1.23342675]
[1770645727736,0.002,2027.1,2026.8,6.36782632]
[1770645728141,0.002,2027.1,2026.9,3.448]
[1770645728515,0.002,2027.1,2026.7,1.23348624]
[1770645728712,0.002,2027.1,2026.7,1.23349824]
[1770645728915,0.002,2027.1,2026.7,1.23352869]
[1770645729418,0.002,2027.1,2026.9,1.23340987]
[1770645730446,0.002,2027.1,2026.7,1.23353234]
[1770645730651,0.002,2027.1,2026.8,7.013715]
[1770645730843,0.002,2027.1,2026.8,4.044279]
[1770645731354,0.002,2027.1,2026.1,0.0735222]
[1770645731524,0.002,2027.1,2026.6,1.23357537]
[1770645731849,0.002,2027.1,2026.5,4.68062242]
[1770645732040,0.002,2027.1,2026.6,1.23359316]
[1770645732645,0.002,2027.1,2026.6,6.36799273]
[1770645732840,0.002,2027.1,2027.0,0.001]
[1770645733445,0.002,2027.9,2027.0,0.001]
[1770645733625,0.002,2027.9,2027.1,8.65492177]
[1770645734647,0.002,2027.9,2027.3,1.23316726]
[1770645734844,0.002,2027.9,2027.2,1.23318371]
[1770645735148,0.002,2027.9,2027.1,4.6802467]
[1770645735360,0.002,2027.9,2027.2,1.23322356]
[1770645735646,0.002,2027.9,2027.2,1.23322536]
[1770645735852,0.002,2027.9,2027.2,1.23322397]
[1770645736231,0.002,2027.9,2027.1,3.447]
[1770645736440,0.002,2027.9,2027.1,3.20715535]
[1770645736648,1.2328632,2027.8,2027.1,3.20715535]
[1770645737228,6.25973467,2027.8,2027.0,0.001]
[1770645738363,1.2328632,2027.8,2027.0,1.23432666]
[1770645738562,1.2328632,2027.8,2027.0,1.23431312]
[1770645738766,0.002,2027.9,2027.0,0.001]
[1770645739329,0.002,2027.9,2027.0,5.42664856]
[1770645739557,0.002,2027.9,2027.1,3.486419]
[1770645739763,0.002,2027.9,2027.2,8.87164856]
[1770645739961,0.002,2027.9,2027.3,20.25585256]
[1770645740139,0.002,2027.9,2027.3,5.42564856]
[1770645740949,0.002,2027.9,2027.4,1.23310644]
[1770645742239,0.002,2027.9,2027.4,6.658755]
[1770645742440,0.002,2028.0,2027.4,6.658755]
[1770645743048,0.002,2028.0,2027.4,1.23310644]
[1770645745267,0.002,2028.0,2027.4,6.126835]
[1770645745647,0.002,2028.0,2027.3,4.93242576]
[1770645745972,5.07937005,2028.0,2027.0,0.001]
[1770645746176,0.002,2027.7,2027.0,0.001]
[1770645746466,0.002,2027.7,2027.4,0.001]
[1770645747356,1.04255179,2027.6,2027.4,0.001]
[1770645747671,0.002,2027.7,2027.4,0.001]
[1770645747865,1.04254823,2027.6,2027.4,0.001]
[1770645748046,0.002,2027.7,2027.4,0.001]
[1770645748244,1.04318311,2027.6,2027.4,0.001]
[1770645748445,0.002,2027.7,2027.4,0.001]
[1770645748656,1.04331516,2027.6,2027.0,0.001]
[1770645748839,1.04324109,2027.5,2027.0,0.001]
[1770645749045,0.002,2027.7,2027.0,0.001]
[1770645749248,1.04526791,2027.7,2027.2,1.23322809]
[1770645749544,1.23493441,2027.7,2027.2,1.23322809]
[1770645749977,1.23492755,2027.7,2027.2,1.23322809]
[1770645750278,1.23492755,2027.7,2027.1,1.30676517]
[1770645750473,0.002,2027.7,2027.1,1.30676517]
[1770645751176,1.23493225,2027.7,2027.1,1.30676517]
[1770645751675,0.002,2027.7,2027.1,1.30676517]
[1770645752176,0.002,2027.7,2027.2,3.446]
[1770645752472,0.002,2027.7,2027.2,8.87164856]
[1770645753887,0.002,2027.7,2027.3,1.23316726]
[1770645754101,0.002,2027.7,2027.2,1.23318769]
[1770645754404,1.04670416,2027.6,2027.0,1.23432424]
[1770645754708,0.002,2027.7,2027.2,1.23321987]
[1770645757402,0.002,2027.7,2027.3,0.0735222]
[1770645758107,0.002,2027.7,2027.4,1.23310644]
[1770645759081,0.002,2027.9,2027.4,1.23310644]
[1770645760179,0.002,2027.9,2027.4,1.23410644]
[1770645760406,0.002,2027.7,2027.4,1.23410644]